fUST/lending_fUST_20251006
["ID","MTS","AMOUNT","RATE_DAILY","PERIOD"]
[389521222,1759693852081,-500.0,0.00017808,2]
[389521223,1759693852090,-651.56,0.00017808,2]
[389521224,1759693852101,-500.0,0.00017808,2]
[389521225,1759693852110,-1092.5,0.00017808,2]
[389521226,1759693852119,-1194.26,0.00017808,2]
[389521227,1759693852129,-349.48350619,0.00017808,2]
[389521228,1759693852138,-500.0,0.00017808,2]
[389521229,1759693852148,-500.0,0.00017808,2]
[389521230,1759693852157,-500.0,0.00017808,2]
[389521231,1759693852166,-500.0,0.00017808,2]
[389521232,1759693852175,-500.0,0.00017808,2]
[389521233,1759693852184,-500.0,0.00017808,2]
[389521234,1759693852193,-500.0,0.00017808,2]
[389521235,1759693852203,-500.0,0.00017808,2]
[389521236,1759693852212,-151.0,0.00017808,2]
[389521237,1759693852221,-151.0,0.00017808,2]
[389521238,1759693852231,-663.65,0.00017808,2]
[389521239,1759693852240,-800.06,0.00017808,2]
[389521240,1759693852249,-1260.74,0.00017808,2]
[389521241,1759693852258,-500.0,0.00017808,2]
[389521242,1759693852267,-151.0,0.00017808,2]
[389521243,1759693852275,-569.99,0.00017808,2]
[389521244,1759693852284,-1886.03,0.00017808,2]
[389521245,1759693852293,-151.0,0.00017808,2]
[389521246,1759693852303,-151.0,0.00017808,2]
[389521247,1759693852315,-151.0,0.00017808,2]
[389521248,1759693852324,-291.947041,0.00017808,2]
[389521249,1759693852333,-500.0,0.00017808,2]
[389521250,1759693852343,-789.18,0.00017808,2]
[389521251,1759693852352,-151.0,0.00017808,2]
[389521252,1759693852361,-500.0,0.00017808,2]
[389521253,1759693852370,-786.17,0.00017808,2]
[389521254,1759693852379,-500.0,0.00017808,2]
[389521255,1759693852387,-500.0,0.00017808,2]
[389521256,1759693852396,-527.97803922,0.00017808,2]
[389521257,1759693852405,-500.0,0.00017808,2]
[389521258,1759693852414,-946.01,0.00017808,2]
[389521259,1759693852423,-151.0,0.00017808,2]
[389521260,1759693852432,-151.0,0.00017808,2]
[389521261,1759693852442,-151.0,0.00017808,2]
[389521262,1759693852451,-776.5,0.00017808,2]
[389521263,1759693852460,-151.0,0.00017808,2]
[389521264,1759693852469,-500.0,0.00017808,2]
[389521265,1759693852478,-1066.9,0.00017808,2]
[389521266,1759693852487,-500.0,0.00017808,2]
[389521267,1759693852496,-151.0,0.00017808,2]
[389521268,1759693852505,-151.0,0.00017808,2]
[389521269,1759693852514,-151.0,0.00017808,2]
[389521270,1759693852523,-500.0,0.00017808,2]
[389521271,1759693852532,-151.0,0.00017808,2]
[389521272,1759693852541,-500.0,0.00017808,2]
[389521273,1759693852551,-500.0,0.00017808,2]
[389521274,1759693852602,-831.51,0.00017808,2]
[389521275,1759693852611,-1686.53,0.00017808,2]
[389521276,1759693852622,-151.0,0.00017808,2]
[389521277,1759693852633,-151.0,0.00017808,2]
[389521278,1759693852642,-909.99,0.00017808,2]
[389521279,1759693852651,-151.0,0.00017808,2]
[389521280,1759693852660,-151.0,0.00017808,2]
[389521281,1759693852669,-180.51469385,0.00017808,2]
[389521282,1759693852878,-319.48530615,0.00017808,2]
[389521283,1759693852887,-663.48,0.00017808,2]
[389521284,1759693852897,-690.22,0.00017808,2]
[389521285,1759693852906,-500.0,0.00017808,2]
[389521286,1759693852915,-500.0,0.00017808,2]
[389521287,1759693852924,-500.0,0.00017808,2]
[389521288,1759693852934,-500.0,0.00017808,2]
[389521289,1759693852943,-83.04075314,0.00017808,2]
[389521291,1759693924813,2000.0,0.00015929,2]
[389521293,1759694282569,710.4050005,0.00015628,2]
[389521294,1759694376263,820.82325427,0.00025225,120]
[389521296,1759694549112,10000.0,0.00028767,120]
[389521356,1759695032500,-300.0,0.00016324,2]
[389521358,1759695032510,-161.98230202,0.00016338,2]
[389521360,1759695032521,-368.24,0.00016428,3]
[389521362,1759695032530,-306.87,0.00016428,3]
[389521364,1759695032539,-153.43,0.00016428,3]
[389521366,1759695032549,-460.32,0.00016428,3]
[389521368,1759695032558,-300.0,0.00016433,2]
[389521370,1759695032567,-300.0,0.00016434,2]
[389521372,1759695032576,-300.0,0.00016434,2]
[389521374,1759695032586,-300.0,0.00016434,2]
[389521376,1759695032595,-1200.0,0.00016434,2]
[389521378,1759695032603,-281.98059168,0.00016437,2]
[389521380,1759695032612,-274.15594352,0.00016437,2]
[389521382,1759695032621,-500.0,0.00016438,2]
[389521384,1759695032630,-500.0,0.00016438,2]
[389521386,1759695032639,-500.0,0.00016438,2]
[389521388,1759695032649,-446.50937773,0.00016438,2]
[389521390,1759695032658,-502.91,0.00016438,2]
[389521392,1759695032667,-231.20851096,0.00016438,2]
[389521394,1759695032676,-500.0,0.00016438,2]
[389521396,1759695032686,-746.59,0.00016438,2]
[389521398,1759695032695,-500.0,0.00016438,2]
[389521400,1759695032704,-500.0,0.00016438,2]
[389521402,1759695032714,-500.0,0.00016438,2]
[389521404,1759695032723,-500.0,0.00016438,2]
[389521406,1759695032732,-382.54202202,0.00016438,2]
[389521408,1759695032742,-500.0,0.00016438,2]
[389521410,1759695032751,-500.0,0.00016438,2]
[389521412,1759695032760,-500.0,0.00016438,2]
[389521414,1759695032769,-500.0,0.00016438,2]
[389521416,1759695032779,-500.0,0.00016438,2]
[389521418,1759695032787,-738.56,0.00016438,2]
[389521420,1759695032796,-500.0,0.00016438,2]
[389521422,1759695032807,-500.0,0.00016438,2]
[389521424,1759695032817,-583.79487945,0.00016438,2]
[389521426,1759695032827,-500.0,0.00016438,2]
[389521428,1759695032836,-500.0,0.00016438,2]
[389521430,1759695032845,-500.0,0.00016438,2]
[389521432,1759695032854,-500.0,0.00016438,2]
[389521434,1759695032864,-500.0,0.00016438,2]
[389521436,1759695032873,-500.0,0.00016438,2]
[389521438,1759695032883,-500.0,0.00016438,2]
[389521440,1759695032892,-500.0,0.00016438,2]
[389521442,1759695032901,-1268.4,0.00016438,2]
[389521444,1759695032911,-500.0,0.00016438,2]
[389521446,1759695032921,-1579.18,0.00016438,2]
[389521447,1759695032931,-500.0,0.00016438,2]
[389521450,1759695032941,-500.0,0.00016438,2]
[389521452,1759695032950,-399.71555089,0.00016438,2]
[389521454,1759695032959,-500.0,0.00016438,2]
[389521456,1759695032969,-500.0,0.00016438,2]
[389521458,1759695032978,-500.0,0.00016438,2]
[389521460,1759695032987,-571.27,0.00016438,2]
[389521462,1759695032996,-500.0,0.00016438,2]
[389521463,1759695033006,-500.0,0.00016438,2]
[389521465,1759695033015,-618.68571348,0.00016438,2]
[389521467,1759695033024,-500.0,0.00016438,2]
[389521469,1759695033034,-500.0,0.00016438,2]
[389521472,1759695033043,-500.0,0.00016438,2]
[389521474,1759695033053,-502.35218277,0.00016438,2]
[389521476,1759695033062,-373.39128123,0.00016438,2]
[389521478,1759695033072,-190.07540932,0.00016438,2]
[389521480,1759695033081,-500.0,0.00016438,2]
[389521481,1759695033091,-451.36371341,0.00016438,2]
[389521483,1759695033100,-1679.3,0.00016438,2]
[389521485,1759695033110,-1039.92,0.00016438,2]
[389521487,1759695033119,-500.0,0.00016438,2]
[389521489,1759695033128,-500.0,0.00016438,2]
[389521492,1759695033137,-500.0,0.00016438,2]
[389521494,1759695033147,-500.0,0.00016438,2]
[389521496,1759695033157,-500.0,0.00016438,2]
[389521498,1759695033166,-592.86,0.00016438,2]
[389521499,1759695033175,-1084.19,0.00016438,2]
[389521501,1759695033184,-500.0,0.00016438,2]
[389521503,1759695033194,-500.0,0.00016438,2]
[389521505,1759695033203,-500.0,0.00016438,2]
[389521507,1759695033214,-500.0,0.00016438,2]
[389521509,1759695033224,-500.0,0.00016438,2]
[389521511,1759695033233,-500.0,0.00016438,2]
[389521513,1759695033242,-500.0,0.00016438,2]
[389521515,1759695033251,-500.0,0.00016438,2]
[389521517,1759695033260,-500.0,0.00016438,2]
[389521519,1759695033269,-606.12,0.00016438,2]
[389521521,1759695033278,-1145.97,0.00016438,2]
[389521523,1759695033287,-1723.13,0.00016438,2]
[389521525,1759695033297,-520.69,0.00016438,2]
[389521528,1759695033308,-500.0,0.00016438,2]
[389521544,1759695033504,-500.0,0.00016438,2]
[389521546,1759695033513,-500.0,0.00016438,2]
[389521548,1759695033523,-504.36,0.00016438,2]
[389521550,1759695033532,-719.73,0.00016438,2]
[389521552,1759695033541,-500.0,0.00016438,2]
[389521554,1759695033550,-863.89,0.00016438,2]
[389521556,1759695033559,-721.64,0.00016438,2]
[389521557,1759695033569,-500.0,0.00016438,2]
[389521558,1759695033578,-707.49,0.00016438,2]
[389521559,1759695033587,-500.0,0.00016438,2]
[389521560,1759695033597,-597.11748466,0.00016438,2]
[389521561,1759695033606,-500.0,0.00016438,2]
[389521562,1759695033615,-976.74,0.00016438,2]
[389521563,1759695033624,-500.0,0.00016438,2]
[389521564,1759695033633,-637.74177378,0.00016438,2]
[389521565,1759695033641,-500.0,0.00016438,2]
[389521566,1759695033650,-511.43,0.00016438,2]
[389521567,1759695033659,-500.0,0.00016438,2]
[389521568,1759695033668,-533.65729588,0.00016438,2]
[389521569,1759695033676,-500.0,0.00016438,2]
[389521570,1759695033685,-500.0,0.00016438,2]
[389521571,1759695033695,-1869.26,0.00016438,2]
[389521572,1759695033704,-1547.33,0.00016438,2]
[389521573,1759695033712,-500.0,0.00016438,2]
[389521574,1759695033721,-500.0,0.00016438,2]
[389521575,1759695033730,-500.0,0.00016438,2]
[389521576,1759695033739,-500.0,0.00016438,2]
[389521577,1759695033748,-604.66,0.00016438,2]
[389521578,1759695033756,-839.77,0.00016438,2]
[389521579,1759695033765,-583.22,0.00016438,2]
[389521580,1759695033774,-500.0,0.00016438,2]
[389521581,1759695033783,-500.0,0.00016438,2]
[389521582,1759695033792,-500.0,0.00016438,2]
[389521583,1759695033801,-500.0,0.00016438,2]
[389521584,1759695033810,-536.42,0.00016438,2]
[389521585,1759695033818,-500.0,0.00016438,2]
[389521586,1759695033827,-599.18,0.00016438,2]
[389521587,1759695033835,-612.04,0.00016438,2]
[389521588,1759695033845,-663.23,0.00016438,2]
[389521589,1759695033854,-502.23,0.00016438,2]
[389521590,1759695033863,-500.0,0.00016438,2]
[389521591,1759695033872,-500.0,0.00016438,2]
[389521593,1759695033881,-1237.88,0.00016438,2]
[389521595,1759695033890,-655.58,0.00016438,2]
[389521597,1759695033900,-500.0,0.00016438,2]
[389521599,1759695033909,-500.0,0.00016438,2]
[389521601,1759695033919,-1549.5,0.00016438,2]
[389521603,1759695033928,-724.58,0.00016438,2]
[389521605,1759695033937,-1258.7,0.00016438,2]
[389521607,1759695033946,-1537.77,0.00016438,2]
[389521609,1759695033956,-662.32,0.00016438,2]
[389521611,1759695033965,-919.03,0.00016438,2]
[389521613,1759695033974,-881.64,0.00016438,2]
[389521615,1759695033983,-500.0,0.00016438,2]
[389521616,1759695033992,-500.0,0.00016438,2]
[389521618,1759695034002,-766.59,0.00016438,2]
[389521621,1759695034012,-1306.74,0.00016438,2]
[389521623,1759695034021,-824.99,0.00016438,2]
[389521625,1759695034030,-590.06,0.00016438,2]
[389521626,1759695034040,-500.0,0.00016438,2]
[389521628,1759695034050,-3252.46,0.00016438,2]
[389521631,1759695034059,-500.0,0.00016438,2]
[389521632,1759695034068,-500.0,0.00016438,2]
[389521634,1759695034076,-500.0,0.00016438,2]
[389521636,1759695034086,-500.0,0.00016438,2]
[389521638,1759695034095,-4336.03,0.00016438,2]
[389521640,1759695034105,-500.0,0.00016438,2]
[389521642,1759695034115,-2436.75,0.00016438,2]
[389521644,1759695034124,-751.24,0.00016438,2]
[389521646,1759695034133,-3912.33,0.00016438,2]
[389521648,1759695034143,-500.0,0.00016438,2]
[389521650,1759695034152,-642.43,0.00016438,2]
[389521652,1759695034162,-678.45,0.00016438,2]
[389521654,1759695034171,-500.0,0.00016438,2]
[389521656,1759695034181,-4275.21,0.00016438,2]
[389521658,1759695034190,-2964.26,0.00016438,2]
[389521660,1759695034199,-500.0,0.00016438,2]
[389521662,1759695034211,-629.80299077,0.00016438,2]
[389521664,1759695034221,-506.96,0.00016438,2]
[389521665,1759695034230,-923.94,0.00016438,2]
[389521667,1759695034239,-500.0,0.00016438,2]
[389521668,1759695034248,-851.72,0.00016438,2]
[389521670,1759695034258,-2190.96,0.00016438,2]
[389521671,1759695034268,-539.26,0.00016438,2]
[389521672,1759695034277,-1054.22490043,0.00016438,2]
[389521673,1759695034488,-344.96,0.00016438,2]
[389521674,1759695034501,-952.56509957,0.00016438,2]
[389521675,1759695034511,-888.96,0.00016438,2]
[389521676,1759695034520,-500.86,0.00016438,2]
[389521677,1759695034530,-438.71489565,0.00016438,2]
[389521678,1759695034541,-108.07510435,0.00016438,2]
[389521679,1759695034550,-2122.18,0.00016438,2]
[389521680,1759695034560,-500.0,0.00016438,2]
[389521681,1759695034569,-500.0,0.00016438,2]
[389521682,1759695034578,-1504.64,0.00016438,2]
[389521683,1759695034588,-1475.61,0.00016438,2]
[389521684,1759695034598,-1247.62,0.00016438,2]
[389521685,1759695034608,-2419.8,0.00016438,2]
[389521686,1759695034617,-807.49,0.00016438,2]
[389521687,1759695034627,-500.0,0.00016438,2]
[389521688,1759695034637,-1212.48,0.00016438,2]
[389521689,1759695034647,-500.0,0.00016438,2]
[389521690,1759695034656,-2750.11,0.00016438,2]
[389521691,1759695034666,-852.69,0.00016438,2]
[389521692,1759695034675,-500.0,0.00016438,2]
[389521693,1759695034684,-500.0,0.00016438,2]
[389521694,1759695034693,-656.32,0.00016438,2]
[389521695,1759695034702,-500.0,0.00016438,2]
[389521696,1759695034712,-756.76,0.00016438,2]
[389521697,1759695034721,-952.04,0.00016438,2]
[389521698,1759695034730,-538.46884623,0.00016438,2]
[389521699,1759695034740,-4932.75,0.00016438,2]
[389521700,1759695034749,-1018.2,0.00016438,2]
[389521701,1759695034759,-537.82,0.00016438,2]
[389521702,1759695034768,-500.0,0.00016438,2]
[389521703,1759695034777,-500.0,0.00016438,2]
[389521704,1759695034787,-2363.06,0.00016438,2]
[389521705,1759695034796,-500.0,0.00016438,2]
[389521706,1759695034805,-539.14,0.00016438,2]
[389521707,1759695034815,-3195.95,0.00016438,2]
[389521708,1759695034825,-500.0,0.00016438,2]
[389521709,1759695034835,-500.0,0.00016438,2]
[389521710,1759695034844,-500.0,0.00016438,2]
[389521711,1759695034853,-730.2,0.00016438,2]
[389521712,1759695034862,-1064.47,0.00016438,2]
[389521713,1759695034872,-500.0,0.00016438,2]
[389521714,1759695034882,-500.0,0.00016438,2]
[389521715,1759695034891,-183.17,0.00016438,2]
[389521716,1759695034902,-1707.66,0.00016438,2]
[389521717,1759695034910,-1265.83,0.00016438,2]
[389521718,1759695034920,-1011.9,0.00016438,2]
[389521719,1759695034929,-500.0,0.00016438,2]
[389521720,1759695034939,-1070.51,0.00016438,2]
[389521721,1759695034948,-579.1,0.00016438,2]
[389521722,1759695034958,-500.0,0.00016438,2]
[389521723,1759695034967,-585.73586428,0.00016712,2]
[389521724,1759695034976,-500.0,0.00016712,2]
[389521725,1759695034985,-500.0,0.00016712,2]
[389521726,1759695034995,-502.91,0.00016712,2]
[389521727,1759695035004,-746.59,0.00016712,2]
[389521728,1759695035014,-500.0,0.00016712,2]
[389521729,1759695035023,-500.0,0.00016712,2]
[389521730,1759695035033,-500.0,0.00016712,2]
[389521731,1759695035042,-500.0,0.00016712,2]
[389521732,1759695035051,-500.0,0.00016712,2]
[389521733,1759695035060,-500.0,0.00016712,2]
[389521734,1759695035070,-500.0,0.00016712,2]
[389521735,1759695035080,-738.56,0.00016712,2]
[389521736,1759695035089,-500.0,0.00016712,2]
[389521737,1759695035099,-500.0,0.00016712,2]
[389521738,1759695035108,-500.0,0.00016712,2]
[389521739,1759695035118,-404.23858333,0.00016712,2]
[389521740,1759695035128,-500.0,0.00016712,2]
[389521741,1759695035137,-500.0,0.00016712,2]
[389521742,1759695035148,-500.0,0.00016712,2]
[389521743,1759695035157,-500.0,0.00016712,2]
[389521744,1759695035167,-500.0,0.00016712,2]
[389521745,1759695035178,-1268.4,0.00016712,2]
[389521746,1759695035188,-500.0,0.00016712,2]
[389521747,1759695035198,-1579.18,0.00016712,2]
[389521748,1759695035207,-500.0,0.00016712,2]
[389521749,1759695035221,-500.0,0.00016712,2]
[389521750,1759695035230,-500.0,0.00016712,2]
[389521751,1759695035241,-571.27,0.00016712,2]
[389521752,1759695035250,-500.0,0.00016712,2]
[389521753,1759695035260,-500.0,0.00016712,2]
[389521754,1759695035270,-500.0,0.00016712,2]
[389521755,1759695035280,-500.0,0.00016712,2]
[389521756,1759695035290,-500.0,0.00016712,2]
[389521757,1759695035299,-500.0,0.00016712,2]
[389521758,1759695035309,-500.0,0.00016712,2]
[389521759,1759695035319,-1679.3,0.00016712,2]
[389521760,1759695035329,-1039.92,0.00016712,2]
[389521761,1759695035339,-500.0,0.00016712,2]
[389521762,1759695035349,-500.0,0.00016712,2]
[389521763,1759695035358,-500.0,0.00016712,2]
[389521764,1759695035368,-500.0,0.00016712,2]
[389521765,1759695035378,-500.0,0.00016712,2]
[389521766,1759695035387,-592.86,0.00016712,2]
[389521767,1759695035398,-1084.19,0.00016712,2]
[389521768,1759695035407,-500.0,0.00016712,2]
[389521769,1759695035417,-500.0,0.00016712,2]
[389521770,1759695035426,-500.0,0.00016712,2]
[389521771,1759695035435,-500.0,0.00016712,2]
[389521772,1759695035444,-500.0,0.00016712,2]
[389521773,1759695035454,-500.0,0.00016712,2]
[389521774,1759695035463,-500.0,0.00016712,2]
[389521775,1759695035472,-500.0,0.00016712,2]
[389521776,1759695035482,-606.12,0.00016712,2]
[389521777,1759695035491,-1145.97,0.00016712,2]
[389521778,1759695035500,-1723.13,0.00016712,2]
[389521779,1759695035510,-520.69,0.00016712,2]
[389521780,1759695035518,-500.0,0.00016712,2]
[389521781,1759695035528,-500.0,0.00016712,2]
[389521782,1759695035537,-500.0,0.00016712,2]
[389521783,1759695035546,-504.36,0.00016712,2]
[389521784,1759695035555,-719.73,0.00016712,2]
[389521785,1759695035564,-500.0,0.00016712,2]
[389521786,1759695035573,-863.89,0.00016712,2]
[389521787,1759695035583,-721.64,0.00016712,2]
[389521788,1759695035592,-500.0,0.00016712,2]
[389521789,1759695035601,-707.49,0.00016712,2]
[389521790,1759695035610,-500.0,0.00016712,2]
[389521791,1759695035619,-500.0,0.00016712,2]
[389521792,1759695035628,-976.74,0.00016712,2]
[389521793,1759695035638,-500.0,0.00016712,2]
[389521794,1759695035648,-198.04609324,0.00016712,2]
[389521795,1759695035657,-511.43,0.00016712,2]
[389521796,1759695035666,-500.0,0.00016712,2]
[389521797,1759695035675,-500.0,0.00016712,2]
[389521798,1759695035686,-500.0,0.00016712,2]
[389521799,1759695035695,-1869.26,0.00016712,2]
[389521800,1759695035705,-1547.33,0.00016712,2]
[389521801,1759695035714,-500.0,0.00016712,2]
[389521802,1759695035723,-500.0,0.00016712,2]
[389521803,1759695035733,-500.0,0.00016712,2]
[389521804,1759695035742,-331.36520157,0.00016712,2]
[389521805,1759695035751,-604.66,0.00016712,2]
[389521806,1759695035761,-839.77,0.00016712,2]
[389521807,1759695035770,-583.22,0.00016712,2]
[389521808,1759695035779,-296.68017267,0.00016712,2]
[389521809,1759695035789,-500.0,0.00016712,2]
[389521810,1759695035798,-500.0,0.00016712,2]
[389521811,1759695035807,-500.0,0.00016712,2]
[389521812,1759695035818,-536.42,0.00016712,2]
[389521813,1759695035827,-500.0,0.00016712,2]
[389521814,1759695035836,-599.18,0.00016712,2]
[389521815,1759695035846,-612.04,0.00016712,2]
[389521816,1759695035855,-663.23,0.00016712,2]
[389521817,1759695035865,-502.23,0.00016712,2]
[389521818,1759695035874,-500.0,0.00016712,2]
[389521819,1759695035884,-500.0,0.00016712,2]
[389521820,1759695035893,-1237.88,0.00016712,2]
[389521821,1759695035902,-655.58,0.00016712,2]
[389521822,1759695035912,-500.0,0.00016712,2]
[389521823,1759695035921,-1549.5,0.00016712,2]
[389521824,1759695035931,-724.58,0.00016712,2]
[389521825,1759695035940,-1258.7,0.00016712,2]
[389521826,1759695035949,-1537.77,0.00016712,2]
[389521827,1759695035958,-662.32,0.00016712,2]
[389521828,1759695035967,-919.03,0.00016712,2]
[389521829,1759695035976,-881.64,0.00016712,2]
[389521830,1759695035986,-500.0,0.00016712,2]
[389521831,1759695035995,-500.0,0.00016712,2]
[389521832,1759695036004,-766.59,0.00016712,2]
[389521833,1759695036014,-1306.74,0.00016712,2]
[389521834,1759695036023,-824.99,0.00016712,2]
[389521835,1759695036032,-590.06,0.00016712,2]
[389521836,1759695036041,-3252.46,0.00016712,2]
[389521837,1759695036051,-500.0,0.00016712,2]
[389521838,1759695036060,-500.0,0.00016712,2]
[389521839,1759695036069,-500.0,0.00016712,2]
[389521840,1759695036078,-4336.03,0.00016712,2]
[389521841,1759695036087,-500.0,0.00016712,2]
[389521842,1759695036097,-2436.75,0.00016712,2]
[389521843,1759695036106,-751.24,0.00016712,2]
[389521844,1759695036115,-3912.33,0.00016712,2]
[389521845,1759695036124,-678.45,0.00016712,2]
[389521846,1759695036134,-642.43,0.00016712,2]
[389521847,1759695036143,-500.0,0.00016712,2]
[389521848,1759695036154,-4275.21,0.00016712,2]
[389521849,1759695036164,-2964.26,0.00016712,2]
[389521850,1759695036174,-500.0,0.00016712,2]
[389521851,1759695036183,-506.96,0.00016712,2]
[389521852,1759695036193,-923.94,0.00016712,2]
[389521853,1759695036202,-500.0,0.00016712,2]
[389521854,1759695036217,-851.72,0.00016712,2]
[389521855,1759695036227,-2190.96,0.00016712,2]
[389521856,1759695036236,-539.26,0.00016712,2]
[389521857,1759695036247,-2351.75,0.00016712,2]
[389521858,1759695036257,-888.96,0.00016712,2]
[389521859,1759695036267,-500.86,0.00016712,2]
[389521860,1759695036276,-546.79,0.00016712,2]
[389521861,1759695036286,-2122.18,0.00016712,2]
[389521862,1759695036295,-500.0,0.00016712,2]
[389521863,1759695036304,-500.0,0.00016712,2]
[389521864,1759695036314,-1504.64,0.00016712,2]
[389521865,1759695036323,-1475.61,0.00016712,2]
[389521866,1759695036332,-1247.62,0.00016712,2]
[389521867,1759695036342,-2419.8,0.00016712,2]
[389521868,1759695036351,-807.49,0.00016712,2]
[389521869,1759695036360,-500.0,0.00016712,2]
[389521870,1759695036370,-1212.48,0.00016712,2]
[389521871,1759695036379,-500.0,0.00016712,2]
[389521872,1759695036389,-2750.11,0.00016712,2]
[389521873,1759695036399,-852.69,0.00016712,2]
[389521874,1759695036408,-500.0,0.00016712,2]
[389521875,1759695036418,-500.0,0.00016712,2]
[389521876,1759695036427,-656.32,0.00016712,2]
[389521877,1759695036437,-756.76,0.00016712,2]
[389521878,1759695036446,-952.04,0.00016712,2]
[389521879,1759695036455,-4932.75,0.00016712,2]
[389521880,1759695036464,-1018.2,0.00016712,2]
[389521881,1759695036473,-537.82,0.00016712,2]
[389521882,1759695036482,-500.0,0.00016712,2]
[389521883,1759695036491,-500.0,0.00016712,2]
[389521884,1759695036500,-2363.06,0.00016712,2]
[389521885,1759695036509,-500.0,0.00016712,2]
[389521886,1759695036518,-539.14,0.00016712,2]
[389521887,1759695036527,-3195.95,0.00016712,2]
[389521888,1759695036536,-500.0,0.00016712,2]
[389521889,1759695036545,-500.0,0.00016712,2]
[389521890,1759695036554,-500.0,0.00016712,2]
[389521891,1759695036563,-730.2,0.00016712,2]
[389521892,1759695036572,-1064.47,0.00016712,2]
[389521893,1759695036580,-500.0,0.00016712,2]
[389521894,1759695036589,-183.17,0.00016712,2]
[389521895,1759695036598,-1707.66,0.00016712,2]
[389521896,1759695036607,-1265.83,0.00016712,2]
[389521897,1759695036615,-1011.9,0.00016712,2]
[389521898,1759695036624,-500.0,0.00016712,2]
[389521899,1759695036633,-1070.51,0.00016712,2]
[389521900,1759695036642,-579.1,0.00016712,2]
[389521901,1759695036652,-500.0,0.00016712,2]
[389521902,1759695036661,-324.0,0.00016724,2]
[389521903,1759695036670,-300.0,0.00016766,2]
[389521904,1759695036679,-300.0,0.00016766,2]
[389521905,1759695036688,-300.0,0.00016766,2]
[389521906,1759695036698,-300.0,0.00016766,2]
[389521907,1759695036707,-300.0,0.00016766,2]
[389521908,1759695036716,-300.0,0.00016766,2]
[389521909,1759695036726,-300.0,0.00016766,2]
[389521910,1759695036735,-300.0,0.00016766,2]
[389521911,1759695036744,-300.0,0.00016766,2]
[389521912,1759695036754,-300.0,0.00016766,2]
[389521913,1759695036763,-300.0,0.00016766,2]
[389521914,1759695036773,-300.0,0.00016766,2]
[389521915,1759695036782,-300.0,0.00016766,2]
[389521916,1759695036791,-300.0,0.00016766,2]
[389521917,1759695036801,-300.0,0.00016766,2]
[389521918,1759695036811,-600.0,0.00016766,2]
[389521919,1759695036820,-1695.76682903,0.00016886,2]
[389521920,1759695036829,-500.0,0.00016986,2]
[389521921,1759695036838,-500.0,0.00016986,2]
[389521922,1759695036848,-500.0,0.00016986,2]
[389521923,1759695036856,-500.0,0.00016986,2]
[389521924,1759695036865,-502.91,0.00016986,2]
[389521925,1759695036875,-746.59,0.00016986,2]
[389521926,1759695036884,-500.0,0.00016986,2]
[389521927,1759695036893,-500.0,0.00016986,2]
[389521928,1759695036903,-500.0,0.00016986,2]